fUST/lending_fUST_20250802
["ID","MTS","AMOUNT","RATE_DAILY","PERIOD"]
[376812477,1754130648914,-460.0,0.00024657,10]
[376812480,1754130648925,-460.0,0.00024657,10]
[376812481,1754130648934,-460.87536298,0.00024657,10]
[376812484,1754130648943,-460.0,0.00024657,10]
[376812486,1754130648953,-460.0,0.00024657,10]
[376812487,1754130648963,-460.0,0.00024657,10]
[376812490,1754130648973,-1830.58,0.00024657,10]
[376812491,1754130648982,-1830.58,0.00024657,10]
[376812493,1754130648993,-460.0,0.00024657,10]
[376812495,1754130649003,-460.0,0.00024657,10]
[376812497,1754130649012,-202.68240733,0.00024657,3]
[376812499,1754130649021,-1830.58,0.00024657,10]
[376812501,1754130649030,-526.37830837,0.00024657,10]
[376812503,1754130649039,-460.0,0.00024657,10]
[376812505,1754130649049,-1830.58,0.00024657,10]
[376812507,1754130649058,-1830.58,0.00024657,10]
[376812509,1754130649067,-460.0,0.00024657,10]
[376812511,1754130649077,-460.0,0.00024657,10]
[376812513,1754130649086,-1830.58,0.00024657,10]
[376812515,1754130649095,-460.0,0.00024657,10]
[376812517,1754130649104,-1830.58,0.00024657,10]
[376812519,1754130649113,-460.0,0.00024657,10]
[376812521,1754130649123,-1830.58,0.00024657,10]
[376812523,1754130649132,-460.0,0.00024657,10]
[376812525,1754130649141,-1830.58,0.00024657,10]
[376812527,1754130649150,-460.0,0.00024657,10]
[376812529,1754130649159,-1830.58,0.00024657,10]
[376812531,1754130649169,-460.0,0.00024657,10]
[376812533,1754130649178,-1830.66320159,0.00024657,10]
[376812535,1754130649187,-460.0,0.00024657,10]
[376812537,1754130649196,-460.0,0.00024657,10]
[376812539,1754130649205,-460.0,0.00024657,10]
[376812541,1754130649215,-460.0,0.00024657,10]
[376812543,1754130649223,-461.86619705,0.00024657,10]
[376812545,1754130649232,-194.20183079,0.00024657,10]
[376812547,1754130649241,-460.0,0.00024657,10]
[376812549,1754130649250,-460.0,0.00024657,10]
[376812551,1754130649259,-460.0,0.00024657,10]
[376812553,1754130649268,-460.0,0.00024657,10]
[376812555,1754130649277,-460.0,0.00024657,10]
[376812557,1754130649286,-460.0,0.00024657,10]
[376812559,1754130649295,-460.0,0.00024657,10]
[376812561,1754130649303,-460.0,0.00024657,10]
[376812563,1754130649313,-460.0,0.00024657,10]
[376812565,1754130649322,-460.0,0.00024657,10]
[376812567,1754130649332,-460.0,0.00024657,10]
[376812569,1754130649341,-460.0,0.00024657,10]
[376812571,1754130649351,-460.0,0.00024657,10]
[376812573,1754130649360,-692.83,0.00024657,10]
[376812574,1754130649374,-460.0,0.00024657,10]
[376812576,1754130649383,-692.83,0.00024657,10]
[376812578,1754130649392,-460.0,0.00024657,10]
[376812580,1754130649402,-460.0,0.00024657,10]
[376812582,1754130649411,-692.83,0.00024657,10]
[376812584,1754130649420,-460.0,0.00024657,10]
[376812586,1754130649429,-692.83,0.00024657,10]
[376812588,1754130649438,-460.0,0.00024657,10]
[376812590,1754130649447,-460.0,0.00024657,10]
[376812592,1754130649456,-692.83,0.00024657,10]
[376812594,1754130649466,-460.0,0.00024657,10]
[376812596,1754130649475,-460.0,0.00024657,10]
[376812598,1754130649484,-692.83,0.00024657,10]
[376812600,1754130649497,-460.0,0.00024657,10]
[376812602,1754130649506,-692.83,0.00024657,10]
[376812604,1754130649514,-460.0,0.00024657,10]
[376812606,1754130649523,-460.0,0.00024657,10]
[376812608,1754130649532,-200.0,0.00024658,2]
[376812610,1754130649542,-280.0,0.00024658,2]
[376812612,1754130649551,-168.18530873,0.00024673,2]
[376812614,1754130649560,-500.0,0.00024673,2]
[376812616,1754130649569,-501.08488343,0.00024673,2]
[376812618,1754130649582,-508.80809965,0.00024673,2]
[376812620,1754130649591,-500.0,0.00024673,2]
[376812622,1754130649600,-500.0,0.00024673,2]
[376812624,1754130649609,-501.67842827,0.00024673,2]
[376812626,1754130649619,-500.0,0.00024673,2]
[376812628,1754130649628,-157.83637057,0.00024673,2]
[376812630,1754130649641,-500.0,0.00024673,2]
[376812632,1754130649651,-500.0,0.00024673,2]
[376812634,1754130649660,-510.72260156,0.00024673,2]
[376812636,1754130649670,-500.33812626,0.00024673,2]
[376812638,1754130649678,-502.28091123,0.00024673,2]
[376812640,1754130649688,-500.0,0.00024673,2]
[376812642,1754130649697,-500.0,0.00024673,2]
[376812644,1754130649706,-500.0,0.00024673,2]
[376812646,1754130649716,-500.0,0.00024673,2]
[376812648,1754130649726,-500.0,0.00024673,2]
[376812650,1754130649735,-500.0,0.00024673,2]
[376812652,1754130649744,-500.0,0.00024673,2]
[376812654,1754130649754,-500.0,0.00024673,2]
[376812656,1754130649763,-409.28358075,0.00024673,2]
[376812658,1754130649772,-500.0,0.00024673,2]
[376812660,1754130649783,-151.0,0.000247,7]
[376812662,1754130649792,-151.0,0.000247,8]
[376812664,1754130649801,-26560.4,0.000247,2]
[376812666,1754130649810,-698.07748527,0.00024701,2]
[376812668,1754130649819,-200.0,0.0002474,15]
[376812670,1754130649828,-200.0,0.0002474,15]
[376812672,1754130649837,-200.0,0.0002474,15]
[376812674,1754130649847,-200.0,0.0002474,15]
[376812676,1754130649857,-200.0,0.0002474,15]
[376812678,1754130649866,-157.82,0.00024753,7]
[376812680,1754130649875,-266.33,0.00024753,7]
[376812682,1754130649884,-212.07,0.00024757,7]
[376812684,1754130649893,-265.47209019,0.00024773,2]
[376812686,1754130649902,-16475.30046257,0.00024774,2]
[376812688,1754130649911,-276.4,0.000248,2]
[376812690,1754130649921,-151.0,0.000248,8]
[376812692,1754130649932,-151.0,0.000248,7]
[376812694,1754130649940,-151.0,0.000248,8]
[376812696,1754130649949,-151.0,0.000248,5]
[376812698,1754130649961,-23326.3943891,0.000248,2]
[376812700,1754130649973,-295.97249677,0.00024821,2]
[376812702,1754130649983,-500.0,0.00024821,2]
[376812704,1754130649992,-371.76380301,0.00024821,2]
[376812706,1754130650001,-1000.0,0.00024821,2]
[376812708,1754130650010,-500.0,0.00024821,2]
[376812710,1754130650019,-441.4172062,0.00024834,2]
[376812712,1754130650028,-157.82,0.00024853,7]
[376812714,1754130650037,-266.34,0.00024853,7]
[376812716,1754130650046,-212.09,0.00024857,7]
[376812718,1754130650055,-200.0,0.00024873,2]
[376812720,1754130650064,-501.08011756,0.00024873,2]
[376812722,1754130650074,-500.0,0.00024873,2]
[376812724,1754130650083,-500.0,0.00024873,2]
[376812726,1754130650092,-502.18292988,0.00024873,2]
[376812728,1754130650101,-500.0,0.00024873,2]
[376812730,1754130650110,-200.49063813,0.00024899,2]
[376812732,1754130650119,-151.0,0.000249,7]
[376812734,1754130650128,-151.0,0.000249,7]
[376812736,1754130650137,-151.0,0.000249,7]
[376812738,1754130650146,-151.0,0.000249,7]
[376812740,1754130650155,-151.0,0.000249,7]
[376812742,1754130650164,-151.0,0.000249,7]
[376812744,1754130650173,-6836.17,0.000249,7]
[376812746,1754130650182,-151.0,0.000249,7]
[376812748,1754130650191,-154.182933,0.000249,7]
[376812750,1754130650200,-154.182933,0.000249,7]
[376812752,1754130650211,-151.0,0.000249,7]
[376812754,1754130650220,-151.0,0.000249,7]
[376812756,1754130650229,-151.0,0.000249,7]
[376812758,1754130650239,-151.0,0.000249,7]
[376812760,1754130650248,-153.552703,0.000249,7]
[376812762,1754130650257,-151.0,0.000249,7]
[376812774,1754130650357,-151.0,0.000249,7]
[376812776,1754130650367,-151.885658,0.000249,7]
[376812778,1754130650376,-151.0,0.000249,7]
[376812780,1754130650385,-151.0,0.000249,7]
[376812782,1754130650394,-48284.4172748,0.000249,2]
[376812784,1754130650403,-245.636436,0.000249,7]
[376812786,1754130650412,-153.232485,0.000249,7]
[376812788,1754130650422,-157.82,0.00024953,7]
[376812790,1754130650431,-160.0,0.00024958,2]
[376812792,1754130650440,-150.0,0.00024973,2]
[376812794,1754130650449,-720.32116816,0.00024986,2]
[376812796,1754130650460,-161.0,0.00025,2]
[376812798,1754130650469,-161.0,0.00025,2]
[376812800,1754130650479,-161.0,0.00025,2]
[376812802,1754130650488,-161.0,0.00025,2]
[376812804,1754130650497,-161.0,0.00025,2]
[376812806,1754130650508,-161.0,0.00025,2]
[376812808,1754130650518,-200.06674809,0.00025,2]
[376812810,1754130650527,-151.0,0.00025,7]
[376812812,1754130650536,-151.0,0.00025,7]
[376812814,1754130650546,-151.0,0.00025,7]
[376812816,1754130650556,-151.0,0.00025,7]
[376812818,1754130650566,-7874.85201955,0.00025,2]
[376812820,1754130650575,-358.94697839,0.00025,2]
[376812822,1754130650585,-500.0,0.00025,2]
[376812824,1754130650593,-120000.0,0.00025,2]
[376812827,1754130650623,-600.0,0.00025,2]
[376812829,1754130650634,-250.61592133,0.00025035,2]
[376812830,1754130650644,-157.82,0.00025053,7]
[376812832,1754130650654,-407.58622082,0.00025062,2]
[376812834,1754130650664,-160.0,0.00025087,3]
[376812836,1754130650673,-157.82,0.00025153,7]
[376812838,1754130650684,-501.6487974,0.00025221,2]
[376812840,1754130650694,-1130.91696015,0.00025221,2]
[376812842,1754130650703,-500.0,0.00025221,2]
[376812844,1754130650712,-500.0,0.00025221,2]
[376812846,1754130650722,-1000.0,0.00025221,2]
[376812848,1754130650731,-500.0,0.00025221,2]
[376812850,1754130650740,-156.662565,0.00025251,3]
[376812852,1754130650749,-157.82,0.00025253,7]
[376812854,1754130650758,-156.662565,0.00025256,2]
[376812856,1754130650767,-156.662565,0.00025261,10]
[376812858,1754130650776,-202.45456066,0.00025317,2]
[376812860,1754130650786,-151.0,0.00025324,7]
[376812863,1754130650795,-970.0,0.00025351,2]
[376812864,1754130650805,-635.0,0.00025351,2]
[376812866,1754130650814,-407.0,0.00025351,2]
[376812868,1754130650823,-2147.0,0.00025351,2]
[376812870,1754130650832,-250.0,0.00025352,2]
[376812872,1754130650842,-157.82,0.00025353,7]
[376812874,1754130650850,-500.0,0.00025398,2]
[376812876,1754130650860,-500.0,0.000254,2]
[376812879,1754130650870,-500.0,0.0002541,2]
[376812880,1754130650879,-151.0,0.0002542,7]
[376812882,1754130650889,-151.0,0.0002542,7]
[376812884,1754130650898,-151.0,0.0002542,7]
[376812886,1754130650908,-1021.44997196,0.00025421,2]
[376812889,1754130650917,-1007.44602392,0.00025421,2]
[376812890,1754130650928,-500.0,0.00025435,2]
[376812892,1754130650937,-157.82,0.00025453,7]
[376812894,1754130650946,-150.0,0.00025467,2]
[376812896,1754130650956,-500.0,0.00025468,2]
[376812898,1754130650965,-16300.35242674,0.0002547,2]
[376812900,1754130650975,-500.0,0.00025476,2]
[376812902,1754130650984,-407.58622082,0.00025493,2]
[376812904,1754130650994,-1000.0,0.000255,2]
[376812906,1754130651003,-260.0,0.00025506,2]
[376812908,1754130651012,-500.0,0.00025508,2]
[376812910,1754130651021,-500.0,0.00025508,2]
[376812912,1754130651031,-250.0,0.00025521,2]
[376812914,1754130651040,-500.0,0.00025529,2]
[376812916,1754130651049,-2792.30994108,0.00025536,2]
[376812918,1754130651059,-501.31243587,0.00025537,2]
[376812920,1754130651067,-157.82,0.00025553,7]
[376812922,1754130651076,-160.12652982,0.00025589,2]
[376812924,1754130651085,-708.16620632,0.0002559,5]
[376812926,1754130651094,-2682.46762638,0.00025615,2]
[376812928,1754130651103,-151.0,0.00025625,7]
[376812930,1754130651113,-15914.82,0.00025625,4]
[376812932,1754130651123,-500.0,0.00025636,2]
[376812934,1754130651132,-153.549557,0.00025644,2]
[376812936,1754130651141,-162.5192371,0.00025644,2]
[376812938,1754130651150,-578.5960598,0.00025644,2]
[376812940,1754130651160,-153.0,0.00025644,2]
[376812943,1754130651169,-165.2608351,0.00025644,2]
[376812945,1754130651179,-181.3928505,0.00025644,2]
[376812946,1754130651188,-578.5960598,0.00025644,2]
[376812949,1754130651197,-153.0,0.00025644,2]
[376812950,1754130651207,-578.5960598,0.00025644,2]
[376812952,1754130651216,-1162.1646553,0.00025644,2]
[376812954,1754130651225,-153.0,0.00025644,2]
[376812956,1754130651234,-153.0,0.00025644,2]
[376812958,1754130651243,-153.0,0.00025644,2]
[376812960,1754130651252,-157.88,0.00025653,7]
[376812962,1754130651261,-1500.0,0.00025768,2]
[376812964,1754130651270,-500.0,0.0002578,2]
[376812966,1754130651279,-500.0,0.00025793,2]
[376812968,1754130651288,-3288.27,0.000258,7]
[376812970,1754130651297,-1553.46,0.000258,7]
[376812972,1754130651306,-156.662565,0.00025855,3]
[376812974,1754130651315,-500.0,0.00025859,2]
[376812975,1754130651324,-156.662565,0.00025864,10]
[376812976,1754130651333,-500.0,0.00025887,2]
[376812977,1754130651342,-5816.21500336,0.00025888,2]
[376812978,1754130651351,-500.0,0.00025892,2]
[376812979,1754130651359,-407.58622082,0.00025925,2]
[376812980,1754130651368,-183.68,0.00025927,2]
[376812981,1754130651377,-160.12652982,0.00025945,2]
[376812982,1754130651386,-500.0,0.00025949,2]
[376812983,1754130651396,-156.662565,0.00025963,2]
[376812984,1754130651405,-500.0,0.00025971,2]
[376812985,1754130651415,-430.4623945,0.00025991,2]
[376812986,1754130651424,-860.924789,0.00025991,2]
[376812987,1754130651432,-161.0,0.00026,2]
[376812989,1754130651442,-519.6016172,0.00026,2]
[376812991,1754130651451,-19900.0,0.00026,2]
[376812993,1754130651461,-151.0,0.00026,20]
[376812995,1754130651471,-170.4289651,0.00026006,2]
[376812997,1754130651480,-301.5166519,0.00026015,2]
[376812999,1754130651490,-958.99700825,0.0002602,2]
[376813001,1754130651499,-195.15987768,0.0002602,2]
[376813003,1754130651510,-805.26481132,0.00026021,2]
[376813005,1754130651519,-151.0,0.00026028,2]
[376813007,1754130651529,-151.0,0.00026028,2]
[376813009,1754130651538,-500.0,0.00026028,2]
[376813011,1754130651548,-472.0,0.00026028,2]
[376813012,1754130651558,-151.0,0.00026028,2]
[376813014,1754130651568,-154.19217065,0.00026028,2]
[376813017,1754130651578,-151.0,0.00026028,2]
[376813018,1754130651587,-151.0,0.00026028,2]
[376813020,1754130651597,-500.0,0.00026028,2]
[376813022,1754130651606,-151.0,0.00026028,2]
[376813024,1754130651615,-151.0,0.00026028,2]
[376813026,1754130651624,-151.0,0.00026028,2]
[376813028,1754130651634,-151.0,0.00026028,2]
[376813030,1754130651643,-360.0,0.00026054,2]
[376813032,1754130651652,-601.7120757,0.00026068,2]
[376813034,1754130651661,-200.30202841,0.00026068,2]
[376813036,1754130651670,-500.0,0.00026082,2]
[376813038,1754130651679,-500.0,0.00026083,2]
[376813040,1754130651688,-2682.46762638,0.0002609,2]
[376813042,1754130651697,-276.4,0.000261,2]
[376813044,1754130651706,-1756.0,0.000261,3]
[376813046,1754130651715,-325.0,0.000261,3]
[376813048,1754130651724,-325.0,0.000261,3]
[376813050,1754130651734,-325.0,0.000261,3]
[376813051,1754130651743,-325.0,0.000261,3]
[376813053,1754130651751,-152.0,0.000261,3]
[376813055,1754130651761,-26560.4,0.000261,2]
[376813057,1754130651770,-200.0,0.00026106,120]
[376813059,1754130651779,-200.0,0.00026119,120]
[376813061,1754130651788,-200.0,0.00026125,120]
[376813063,1754130651798,-500.0,0.0002613,2]
[376813065,1754130651808,-200.0,0.00026132,120]
[376813067,1754130651818,-757.56,0.00026139,7]
[376813069,1754130651827,-190.90177104,0.0002616,2]
[376813071,1754130651836,-200.0,0.00026163,120]
[376813073,1754130651845,-206.0,0.0002617,2]
[376813075,1754130651854,-153.0,0.000262,120]
[376813077,1754130651863,-151.0,0.000262,16]
[376813079,1754130651873,-1256.0,0.00026209,2]
[376813081,1754130651882,-200.0,0.00026212,120]
[376813083,1754130651891,-200.0,0.00026237,120]
[376813085,1754130651900,-757.56,0.00026239,7]
[376813087,1754130651909,-500.0,0.00026242,2]
[376813089,1754130651919,-500.0,0.00026248,2]
[376813091,1754130651928,-503.70462743,0.00026257,2]
[376813093,1754130651937,-200.0,0.00026264,120]
[376813095,1754130651948,-200.0,0.00026272,120]
[376813097,1754130651957,-160.12652982,0.00026274,2]
[376813099,1754130651966,-406.0,0.00026295,2]
[376813101,1754130651975,-420.0,0.00026295,2]
[376813103,1754130651984,-411.0,0.00026295,2]
[376813105,1754130651994,-500.0,0.00026302,2]
[376813107,1754130652004,-472.0,0.00026302,2]
[376813109,1754130652012,-151.0,0.00026302,2]
[376813111,1754130652021,-500.0,0.00026302,2]
[376813113,1754130652030,-151.0,0.00026302,2]
[376813115,1754130652039,-500.0,0.00026305,2]
[376813116,1754130652048,-200.0,0.00026315,120]
[376813118,1754130652057,-2000.0,0.00026316,2]
[376813120,1754130652065,-200.0,0.00026334,120]
[376813122,1754130652074,-757.56,0.00026339,7]
[376813124,1754130652083,-500.0,0.00026352,2]
[376813126,1754130652092,-407.58622082,0.00026356,2]
[376813128,1754130652102,-200.0,0.00026369,120]
[376813130,1754130652111,-6276.41467007,0.00026372,2]
[376813132,1754130652119,-200.0,0.00026373,120]
[376813134,1754130652128,-200.0,0.00026384,120]
[376813136,1754130652137,-200.0,0.00026389,120]
[376813138,1754130652146,-200.0,0.00026393,120]
[376813140,1754130652155,-200.0,0.000264,120]
[376813142,1754130652164,-6836.17,0.000264,7]
[376813144,1754130652173,-500.0,0.00026402,2]
[376813146,1754130652182,-183.68,0.00026404,2]
[376813148,1754130652191,-200.0,0.00026409,120]
[376813150,1754130652201,-200.0,0.00026415,120]
[376813152,1754130652210,-1680.0,0.00026415,2]
[376813154,1754130652220,-757.56,0.00026439,7]
[376813156,1754130652229,-200.0,0.0002644,120]
[376813158,1754130652238,-156.662565,0.00026459,3]
[376813160,1754130652249,-200.0,0.00026468,120]
[376813162,1754130652258,-156.662565,0.00026468,10]
[376813164,1754130652268,-1763.90315598,0.0002647,2]
[376813166,1754130652278,-500.0,0.00026476,2]
[376813168,1754130652287,-200.0,0.00026486,120]
[376813170,1754130652296,-3776.421,0.00026493,2]
[376813172,1754130652306,-200.0,0.00026499,120]
[376813174,1754130652315,-206.0,0.000265,2]
[376813176,1754130652324,-200.0,0.00026507,120]
[376813178,1754130652333,-200.0,0.00026513,120]
[376813180,1754130652342,-200.0,0.00026514,120]
[376813182,1754130652351,-757.56,0.00026539,7]
[376813184,1754130652360,-500.0,0.00026573,2]
[376813186,1754130652369,-150.38984079,0.00026573,2]
[376813188,1754130652377,-2208.71126081,0.00026575,2]
[376813190,1754130652386,-151.0,0.00026575,7]
[376813192,1754130652395,-151.0,0.00026575,7]
[376813194,1754130652404,-151.0,0.00026575,7]
[376813196,1754130652412,-152.273179,0.00026575,7]
[376813198,1754130652421,-240.34582,0.00026575,7]
[376813199,1754130652430,-230.338321,0.00026575,7]
[376813201,1754130652439,-151.0,0.00026575,7]
[376813203,1754130652448,-153.93606,0.00026575,7]
[376813205,1754130652457,-154.932017,0.00026575,7]
[376813207,1754130652467,-151.0,0.00026575,7]
[376813209,1754130652475,-154.182933,0.00026575,7]
[376813211,1754130652484,-154.182933,0.00026575,7]
[376813213,1754130652493,-277.656296,0.00026575,7]
[376813215,1754130652502,-151.0,0.00026575,7]
[376813217,1754130652514,-151.0,0.00026575,7]
[376813219,1754130652524,-151.0,0.00026575,7]
[376813221,1754130652532,-151.0,0.00026575,7]
[376813223,1754130652542,-151.932771,0.00026575,7]
[376813225,1754130652551,-151.0,0.00026575,7]
[376813227,1754130652560,-151.0,0.00026575,7]
[376813229,1754130652570,-151.0,0.00026575,7]
[376813231,1754130652579,-151.0,0.00026575,7]
[376813233,1754130652591,-151.0,0.00026575,7]
[376813234,1754130652600,-151.0,0.00026575,7]
[376813236,1754130652633,-151.0,0.00026575,7]
[376813238,1754130652642,-151.0,0.00026575,7]
[376813250,1754130652738,-230.29703,0.00026575,7]
[376813252,1754130652748,-275.142379,0.00026575,7]
[376813254,1754130652757,-151.0,0.00026575,7]
[376813256,1754130652767,-151.0,0.00026575,7]
[376813258,1754130652776,-151.0,0.00026575,7]
[376813260,1754130652785,-151.0,0.00026575,7]
[376813262,1754130652794,-151.0,0.00026575,7]
[376813264,1754130652804,-5472.76,0.00026575,10]
[376813266,1754130652814,-5472.76,0.00026575,10]
[376813268,1754130652824,-5472.76,0.00026575,10]
[376813270,1754130652833,-5472.76,0.00026575,10]
[376813272,1754130652843,-5472.76,0.00026575,10]
[376813274,1754130652852,-5472.76,0.00026575,10]
[376813276,1754130652862,-5472.76,0.00026575,10]
[376813278,1754130652871,-5472.76,0.00026575,10]
[376813280,1754130652881,-5472.76,0.00026575,10]
[376813282,1754130652890,-5472.76,0.00026575,10]
[376813284,1754130652899,-5472.76,0.00026575,10]
[376813286,1754130652908,-5472.76,0.00026575,10]
[376813288,1754130652917,-5472.76,0.00026575,10]
[376813289,1754130652926,-5472.76,0.00026575,10]
[376813292,1754130652936,-5472.76,0.00026575,10]
[376813293,1754130652945,-5472.76,0.00026575,10]
[376813295,1754130652954,-5472.76,0.00026575,10]
[376813297,1754130652965,-5472.76,0.00026575,10]
[376813299,1754130652974,-5472.76,0.00026575,10]
[376813301,1754130652983,-5472.76,0.00026575,10]
[376813303,1754130652991,-5472.76,0.00026575,10]
[376813305,1754130653000,-1422.64291873,0.00026575,10]
[376813317,1754130653101,-4050.11708127,0.00026575,10]
[376813319,1754130653111,-5472.76,0.00026575,10]
[376813321,1754130653120,-5472.95581542,0.00026575,10]
[376813323,1754130653129,-500.0,0.00026576,2]
[376813325,1754130653138,-472.0,0.00026576,2]
[376813327,1754130653147,-198.0,0.00026576,2]
[376813329,1754130653156,-500.0,0.00026576,2]
[376813331,1754130653165,-198.0,0.00026576,2]
[376813333,1754130653174,-800.0,0.00026585,2]
[376813335,1754130653183,-200.0,0.00026586,120]
[376813337,1754130653192,-200.0,0.00026591,120]
[376813339,1754130653201,-200.0,0.00026602,120]
[376813341,1754130653211,-460.0,0.00026602,2]
[376813343,1754130653221,-160.12652982,0.00026603,2]
[376813345,1754130653230,-200.0,0.00026628,120]
[376813347,1754130653239,-500.0,0.00026636,2]
[376813349,1754130653248,-757.56,0.00026639,7]
[376813351,1754130653257,-156.662565,0.00026669,2]
[376813353,1754130653266,-200.0,0.00026671,120]
[376813355,1754130653274,-500.0,0.00026673,2]
[376813357,1754130653283,-248.448387,0.00026676,2]
[376813359,1754130653292,-500.0,0.00026678,2]
[376813361,1754130653301,-500.0,0.00026707,2]
[376813363,1754130653310,-500.0,0.00026711,2]
[376813365,1754130653319,-200.0,0.00026716,120]
[376813367,1754130653328,-500.0,0.00026731,2]
[376813369,1754130653337,-757.56,0.00026739,7]
[376813371,1754130653347,-156.662565,0.0002676,15]
[376813373,1754130653355,-500.0,0.00026771,2]
[376813375,1754130653364,-407.58622082,0.00026787,2]
[376813377,1754130653373,-500.0,0.00026787,2]
[376813379,1754130653382,-500.0,0.00026789,2]
[376813381,1754130653391,-3396.69557826,0.000268,7]
[376813383,1754130653400,-1022.22,0.000268,120]
[376813385,1754130653410,-644.0,0.000268,2]
[376813387,1754130653419,-150.0,0.00026801,2]
[376813389,1754130653428,-200.0,0.00026805,120]
[376813391,1754130653436,-757.56,0.00026839,7]
[376813393,1754130653445,-206.0,0.0002684,2]
[376813395,1754130653455,-500.0,0.0002685,2]
[376813397,1754130653468,-472.0,0.0002685,2]
[376813399,1754130653477,-500.0,0.0002685,2]
[376813401,1754130653486,-500.0,0.00026854,2]
[376813403,1754130653499,-2500.0,0.00026864,2]
[376813405,1754130653508,-200.0,0.00026868,120]
[376813407,1754130653517,-156.662565,0.0002688,15]
[376813408,1754130653526,-1756.0,0.00026881,3]
[376813409,1754130653535,-1756.0,0.00026881,3]
[376813410,1754130653544,-325.0,0.00026881,3]
[376813411,1754130653552,-325.0,0.00026881,3]
[376813412,1754130653561,-325.0,0.00026881,3]
[376813413,1754130653571,-325.0,0.00026881,3]
[376813414,1754130653580,-325.0,0.00026881,3]
[376813415,1754130653589,-325.0,0.00026881,3]
[376813416,1754130653598,-325.0,0.00026881,3]
[376813417,1754130653606,-155.0,0.00026899,2]
[376813418,1754130653615,-200.0,0.00026915,120]
[376813419,1754130653624,-153.07,0.0002692,2]
[376813420,1754130653633,-200.0,0.00026922,120]
[376813421,1754130653642,-200.0,0.00026929,120]
[376813422,1754130653650,-500.0,0.00026929,2]
[376813423,1754130653659,-757.56,0.00026939,7]
[376813424,1754130653668,-500.0,0.00026949,2]
[376813425,1754130653677,-160.12652982,0.00026959,2]
[376813426,1754130653686,-153.06,0.0002696,2]
[376813427,1754130653695,-151.0,0.0002698,7]
[376813428,1754130653704,-500.0,0.0002698,2]
[376813429,1754130653714,-151.0,0.00026995,7]
[376813430,1754130653723,-151.0,0.00026995,7]
[376813431,1754130653732,-15914.82,0.00026995,6]
[376813432,1754130653741,-500.0,0.00026999,2]
[376813433,1754130653750,-160.0,0.00027,3]
[376813434,1754130653759,-773.8,0.00027,2]
[376813435,1754130653767,-1000.0,0.00027,27]
[376813436,1754130653776,-400.0,0.00027,120]
[376813437,1754130653785,-400.0,0.00027,30]
[376813438,1754130653794,-124442.37,0.00027,2]
[376813439,1754130653803,-772.73,0.00027,2]
[376813440,1754130653812,-16612.1440195,0.00027,15]
[376813441,1754130653821,-1754.32884207,0.00027,5]
[376813443,1754130653830,-180.838031,0.00027,7]
[376813445,1754130653839,-151.0,0.00027,7]
[376813447,1754130653848,-151.0,0.00027,7]
[376813449,1754130653857,-154.182933,0.00027,7]
[376813451,1754130653866,-154.182933,0.00027,7]